bitfinex-derivatives/quotes_SOLF0:USTF0_20250529
["timestamp","ask_amount","ask_price","bid_price","bid_amount"]
[1748511810716,0.04131767,172.57,172.52,2.0112]
[1748511811719,0.04131767,172.57,172.48,31.3907]
[1748511812227,5.7938,172.56,172.52,5.7946]
[1748511812418,0.04131767,172.57,172.52,5.7946]
[1748511813726,5.7936,172.56,172.52,5.7946]
[1748511814422,29.3,172.56,172.51,5.7951]
[1748511814626,29.3,172.56,172.48,31.3907]
[1748511814826,5.7943,172.54,172.5,5.7951]
[1748511815022,29.3,172.56,172.5,5.7951]
[1748511815221,29.3,172.56,172.48,31.3907]
[1748511815417,29.3,172.56,172.48,2.0907]
[1748511815926,5.7941,172.54,172.51,5.7951]
[1748511816126,29.3,172.56,172.48,2.0907]
[1748511816327,0.03919691,172.54,172.48,2.0907]
[1748511817427,5.83349691,172.54,172.51,5.7951]
[1748511818718,0.03919691,172.54,172.52,5.7947]
[1748511819928,3.26364456,172.54,172.52,5.7947]
[1748511820531,9.05774456,172.54,172.51,5.795]
[1748511822930,0.03919691,172.54,172.52,5.7947]
[1748511823232,0.03919691,172.54,172.48,2.0907]
[1748511823930,0.03919691,172.54,172.52,5.7945]
[1748511826135,5.83339691,172.54,172.51,5.795]
[1748511826333,0.03919691,172.54,172.51,5.795]
[1748511826532,0.03919691,172.54,172.48,2.0907]
[1748511828631,0.03919691,172.54,172.52,5.7946]
[1748511829234,0.03919691,172.54,172.53,5.7945]
[1748511830336,0.03919691,172.54,172.52,5.7947]
[1748511831536,5.83329691,172.54,172.51,5.795]
[1748511835044,0.03919691,172.54,172.51,5.795]
[1748511835341,0.03919691,172.54,172.52,5.7947]
[1748511835740,5.7948,172.52,172.45,29.3]
[1748511835943,0.04270284,172.5,172.48,5.7959]
[1748511836446,0.04270284,172.5,172.45,29.3]
[1748511836737,3.22444765,172.48,172.43,3.7749]
[1748511836943,9.02084765,172.48,172.44,5.7973]
[1748511837945,5.7964,172.48,172.44,5.7973]
[1748511838140,5.7959,172.49,172.45,5.7971]
[1748511839143,5.83830284,172.5,172.46,5.7965]
[1748511839642,0.04270284,172.5,172.39,29.3]
[1748511839944,0.03712406,172.46,172.43,5.7977]
[1748511843850,0.03712406,172.46,172.44,5.7973]
[1748511844849,0.03712406,172.46,172.45,5.7971]
[1748511860458,3.22669232,172.49,172.38,3.9459]
[1748511860665,3.22669232,172.47,172.39,32.50669232]
[1748511860864,3.22669232,172.49,172.41,3.22669232]
[1748511861064,3.22669232,172.49,172.39,32.50669232]
[1748511861263,0.04376578,172.46,172.42,0.04204417]
[1748511863966,0.04376578,172.46,172.45,5.7971]
[1748511865671,0.04376578,172.46,172.44,5.7974]
[1748511866172,0.04376578,172.46,172.45,5.7971]
[1748511867774,0.04376578,172.46,172.42,0.04204417]
[1748511869273,0.04376578,172.46,172.43,5.7976]
[1748511869570,0.04376578,172.46,172.42,0.04204417]
[1748511871074,0.04376578,172.46,172.45,5.7971]
[1748511904316,3005.18,172.78,172.45,32.46622309]
[1748511904504,29.24,172.54,172.47,3.22622309]
[1748511904704,36.42062309,172.57,172.5,3.22622309]
[1748511904898,3.22622309,172.55,172.45,29.24]
[1748511905099,3.22622309,172.53,172.45,32.46622309]
[1748511905402,0.03836218,172.51,172.49,5.7955]
[1748511905606,0.04387504,172.52,172.48,0.03943039]
[1748511905804,0.04387504,172.52,172.49,5.7957]
[1748511907100,0.04387504,172.52,172.5,5.7954]
[1748511908399,0.04387504,172.52,172.49,5.7957]
[1748511908799,0.04387504,172.52,172.5,5.7953]
[1748511909107,3.22622309,172.51,172.48,0.03943039]
[1748511909604,4.13877504,172.52,172.48,0.03943039]
[1748511910105,5.7952,172.51,172.48,5.83533039]
[1748511911005,4.13877504,172.52,172.48,0.03943039]
[1748511911907,2.06727504,172.52,172.48,0.03943039]
[1748511912600,7.86217504,172.52,172.48,5.83533039]
[1748511913301,7.86217504,172.52,172.49,5.7957]
[1748511913507,2.06727504,172.52,172.49,5.7957]
[1748511914203,2.06727504,172.52,172.5,5.7954]
[1748511914404,2.06727504,172.52,172.48,0.03943039]
[1748511914601,0.04387504,172.52,172.48,0.03943039]
[1748511915208,0.04387504,172.52,172.48,5.83543039]
[1748511915404,5.83887504,172.52,172.48,5.83543039]
[1748511915610,0.04387504,172.52,172.48,0.03943039]
[1748511915808,5.7953,172.51,172.48,0.03943039]
[1748511916010,3.27009813,172.52,172.48,0.03943039]
[1748511917006,5.7955,172.5,172.48,0.03943039]
[1748511917900,3.27009813,172.52,172.48,0.03943039]
[1748511918718,5.7957,172.5,172.48,0.03943039]
[1748511919615,3.22622309,172.5,172.48,0.03943039]
[1748511920413,5.7958,172.49,172.48,0.03943039]
[1748511920712,3.22622309,172.5,172.48,0.03943039]
[1748511920914,2.0242,172.51,172.48,0.03943039]
[1748511922111,0.04387504,172.52,172.48,0.03943039]
[1748511922710,0.04387504,172.52,172.49,5.7956]
[1748511922911,0.04387504,172.52,172.48,0.03943039]
[1748511923311,5.7952,172.51,172.48,5.83533039]
[1748511924006,0.04387504,172.52,172.48,0.03943039]
[1748511924616,5.7957,172.5,172.48,0.03943039]
[1748511925013,3.22622309,172.51,172.48,0.03943039]
[1748511925212,7.15542309,172.51,172.48,0.03943039]
[1748511925812,5.7958,172.49,172.48,0.03943039]
[1748511929210,5.7956,172.5,172.48,0.03943039]
[1748511930117,12.95072309,172.51,172.48,5.83553039]
[1748511930317,7.15542309,172.51,172.48,0.03943039]
[1748511930721,3.22622309,172.49,172.48,0.03943039]
[1748511931219,3.22622309,172.49,172.44,5.7975]
[1748511931521,5.915,172.51,172.44,5.7975]
[1748511931722,9.02252309,172.48,172.44,5.7975]
[1748511931918,5.7963,172.48,172.44,5.7975]
[1748511932112,9.02252309,172.48,172.44,5.84125496]
[1748511932319,9.06475637,172.48,172.44,5.84125496]
[1748511933220,5.7965,172.47,172.44,5.84125496]
[1748511935019,5.7968,172.46,172.44,0.04375496]
[1748511937113,9.02302309,172.46,172.44,0.04375496]
[1748511938721,5.7971,172.45,172.44,0.04375496]
[1748511941319,3.22622309,172.46,172.44,0.04375496]
[1748511941624,9.02312309,172.46,172.44,0.04375496]
[1748511941828,3.22622309,172.46,172.44,0.04375496]
[1748511942833,5.7971,172.45,172.44,0.04375496]
[1748511943027,3.22622309,172.46,172.37,31.083]
[1748511943224,3.22622309,172.44,172.37,31.083]
[1748511943426,3.22622309,172.44,172.35,503.88622309]
[1748511943626,3.22622309,172.44,172.36,29.18]
[1748511943930,32.40622309,172.44,172.35,533.06622309]
[1748511944135,0.03651606,172.41,172.35,533.06622309]
[1748511944326,0.03651606,172.41,172.39,5.7991]
[1748511945026,0.03651606,172.41,172.35,29.18]
[1748511945526,0.03651606,172.41,172.38,5.7994]
[1748511946528,0.03651606,172.41,172.35,29.18]
[1748511946529,0.03651606,172.41,172.39,5.7991]
[1748511949933,0.03651606,172.41,172.4,5.7988]
[1748511950630,0.03651606,172.41,172.39,5.799]
[1748511952128,0.03651606,172.41,172.35,29.18]
[1748511952836,0.03651606,172.41,172.39,5.7989]
[1748511953133,0.03651606,172.41,172.35,32.40622309]
[1748511953438,0.03651606,172.41,172.37,3.22622309]
[1748511953736,3.22622309,172.46,172.38,1.9948]
[1748511953935,3.22622309,172.46,172.39,29.18]
[1748511954234,3.22622309,172.49,172.39,34.34252309]
[1748511954636,0.0415779,172.46,172.42,0.03914066]
[1748511954831,0.0415779,172.46,172.45,5.7969]
[1748511955537,3.22622309,172.52,172.48,5.7959]
[1748511955740,3.22622309,172.52,172.43,32.42622309]
[1748511955931,5.7953,172.51,172.47,5.7962]
[1748511956442,5.83414849,172.51,172.47,5.83600593]
[1748511956933,0.03884849,172.51,172.48,5.7961]
[1748511957141,0.03884849,172.51,172.47,0.03980593]
[1748511957529,0.03884849,172.51,172.5,5.7955]
[1748511957932,0.03884849,172.51,172.49,5.7955]
[1748511958135,0.03884849,172.51,172.47,0.03980593]
[1748511958641,0.03884849,172.51,172.5,5.7955]
[1748511962941,0.03884849,172.51,172.49,5.7957]
[1748511963241,0.03884849,172.51,172.47,29.21980593]
[1748511963642,0.03884849,172.51,172.48,5.7961]
[1748511965943,0.03884849,172.51,172.49,5.7958]
[1748511967654,0.03884849,172.51,172.5,5.7955]
[1748511975053,4.849e-05,172.51,172.5,5.7955]
[1748511975762,29.16,172.62,172.58,5.7927]
[1748511975953,29.16,172.62,172.52,29.16]
[1748511976153,5.7918,172.61,172.53,29.16]
[1748511976549,29.16,172.62,172.53,29.16]
[1748511976759,0.04277199,172.59,172.56,0.03967501]
[1748511977360,0.04277199,172.59,172.57,5.7928]
[1748511977850,0.04277199,172.59,172.56,0.03967501]
[1748511978053,0.04277199,172.59,172.56,5.83307501]
[1748511978963,5.83527199,172.59,172.56,0.03967501]
[1748511979160,0.04277199,172.59,172.56,0.03967501]
[1748511980058,5.7931,172.57,172.56,0.03967501]
[1748511980256,0.04277199,172.59,172.56,0.03967501]
[1748511980663,5.793,172.58,172.56,0.03967501]
[1748511982055,0.04277199,172.59,172.56,0.03967501]
[1748511983061,0.04277199,172.59,172.57,5.7931]
[1748511985563,0.04277199,172.59,172.58,5.7928]
[1748511986357,5.791,172.64,172.61,5.7917]
[1748511986655,36.8628,172.65,172.61,5.7917]
[1748511986858,36.8628,172.65,172.57,29.14]
[1748511987361,0.04371045,172.63,172.62,5.7914]
[1748511992165,0.04371045,172.63,172.6,5.7918]
[1748511992465,0.04371045,172.63,172.59,0.03735444]
[1748511992664,0.04371045,172.63,172.6,5.792]
[1748511993666,0.04371045,172.63,172.61,5.7917]
[1748511994565,0.04371045,172.63,172.6,5.792]
[1748511994962,0.04371045,172.63,172.59,0.03735444]
[1748511995162,5.7914,172.62,172.59,5.82945444]
[1748511995465,0.04371045,172.63,172.59,0.03735444]
[1748511995666,5.83501045,172.63,172.59,5.82965444]
[1748511995860,0.04371045,172.63,172.59,0.03735444]
[1748511996257,5.7916,172.62,172.59,0.03735444]
[1748511996569,0.04371045,172.63,172.59,0.03735444]
[1748511996766,0.04371045,172.63,172.61,5.7918]
[1748511997066,0.04371045,172.63,172.59,0.03735444]
[1748511997866,0.04371045,172.63,172.6,5.7919]
[1748511999069,0.04371045,172.63,172.61,5.7917]
[1748512006077,0.04371045,172.63,172.62,5.7914]
[1748512006570,0.04371045,172.63,172.61,5.7916]
[1748512006777,0.04371045,172.63,172.59,0.03735444]
[1748512007276,0.04371045,172.63,172.62,5.7914]
[1748512010383,0.04371045,172.63,172.61,5.7917]
[1748512010579,0.04371045,172.63,172.59,0.03735444]
[1748512011380,0.04371045,172.63,172.6,5.7918]
[1748512011581,0.04371045,172.63,172.59,0.03735444]
[1748512012278,5.7915,172.62,172.59,0.03735444]
[1748512012680,0.04371045,172.63,172.59,0.03735444]
[1748512013183,5.7915,172.62,172.59,0.03735444]
[1748512013480,0.04371045,172.63,172.59,0.03735444]
[1748512013881,0.04371045,172.63,172.59,5.82975444]
[1748512014484,5.83501045,172.63,172.59,5.82975444]
[1748512015086,5.7916,172.62,172.59,0.03735444]
[1748512015485,0.04371045,172.63,172.59,0.03735444]
[1748512015687,5.7916,172.62,172.59,0.03735444]
[1748512016783,5.792,172.61,172.59,0.03735444]
[1748512017084,2.11291045,172.63,172.59,0.03735444]
[1748512017284,4.08511045,172.63,172.59,0.03735444]
[1748512017985,5.792,172.61,172.59,0.03735444]
[1748512018684,5.7921,172.6,172.59,0.03735444]
[1748512019282,5.7919,172.61,172.59,0.03735444]
[1748512020286,5.7921,172.6,172.59,0.03735444]
[1748512021389,11.02850909,172.63,172.49,500.58]
[1748512021588,10.98479864,172.63,172.5,29.12]
[1748512021783,10.98479864,172.63,172.52,5.7946]
[1748512021979,5.7937,172.56,172.5,29.12]
[1748512022283,29.12,172.58,172.5,34.9153]
[1748512022489,5.794,172.55,172.52,0.04349815]
[1748512023296,5.83153784,172.56,172.52,0.04349815]
[1748512025088,0.03803784,172.56,172.52,5.83819815]
[1748512025286,0.03803784,172.56,172.52,0.04349815]
[1748512027090,0.03803784,172.56,172.54,5.7939]
[1748512027290,0.03803784,172.56,172.52,0.04349815]
[1748512027692,0.03803784,172.56,172.55,5.7938]
[1748512029192,0.03803784,172.56,172.52,0.04349815]
[1748512029697,0.03803784,172.56,172.54,5.7938]
[1748512030395,0.03803784,172.56,172.55,5.7938]
[1748512030991,0.03803784,172.56,172.54,5.794]
[1748512031695,0.03803784,172.56,172.55,5.7938]
[1748512032499,0.03803784,172.56,172.54,5.794]
[1748512034597,0.03803784,172.56,172.53,5.7943]
[1748512034797,0.03803784,172.56,172.52,0.04349815]
[1748512035204,2.02103784,172.56,172.52,0.04349815]
[1748512036997,5.7944,172.53,172.52,0.04349815]
[1748512037301,29.1,172.53,172.45,29.1]
[1748512038200,0.04452477,172.51,172.47,0.04153218]
[1748512039506,5.83992477,172.51,172.47,0.04153218]
[1748512040507,0.04452477,172.51,172.47,0.04153218]
[1748512041006,0.04452477,172.51,172.48,5.7961]
[1748512041308,0.04452477,172.51,172.47,0.04153218]
[1748512041706,0.04452477,172.51,172.47,5.83803218]
[1748512041910,5.7955,172.5,172.47,0.04153218]
[1748512043412,5.83962477,172.51,172.47,0.04153218]
[1748512043602,0.04452477,172.51,172.47,0.04153218]
[1748512044108,0.04452477,172.51,172.48,5.7961]
[1748512045412,0.04452477,172.51,172.47,5.83793218]
[1748512046006,0.04452477,172.51,172.48,5.7961]
[1748512046409,0.04452477,172.51,172.47,0.04153218]
[1748512046803,0.04452477,172.51,172.49,5.7955]
[1748512047009,0.04452477,172.51,172.47,0.04153218]
[1748512047311,0.04452477,172.51,172.49,5.7955]
[1748512051215,0.04452477,172.51,172.5,5.7954]
[1748512055932,0.04452477,172.51,172.47,0.04153218]
[1748512056420,5.83972477,172.51,172.47,0.04153218]
[1748512057117,0.04452477,172.51,172.48,5.7961]
[1748512058314,5.83962477,172.51,172.47,5.83783218]
[1748512059313,0.04452477,172.51,172.48,5.7961]
[1748512059520,0.04452477,172.51,172.47,0.04153218]
[1748512059913,0.04452477,172.51,172.49,5.7955]
[1748512061720,0.04452477,172.51,172.48,5.796]
[1748512062815,0.04452477,172.51,172.49,5.7957]
[1748512063617,0.04452477,172.51,172.47,0.04153218]
[1748512064814,0.04452477,172.51,172.49,5.7955]
[1748512065621,0.04452477,172.51,172.5,5.7954]
[1748512070231,32.9178,172.59,172.49,29.1]
[1748512070824,31.0305,172.59,172.49,31.0825]
[1748512071219,0.04203255,172.56,172.53,5.7941]
[1748512071424,0.04203255,172.56,172.52,0.04305743]
[1748512072721,0.04203255,172.56,172.55,5.7937]
[1748512075625,0.04203255,172.56,172.54,5.7939]
[1748512077026,0.04203255,172.56,172.55,5.7937]
[1748512082423,31.1755,172.62,172.53,29.1]
[1748512082625,5.7922,172.6,172.53,29.1]
[1748512083023,5.7922,172.6,172.56,5.7932]
[1748512083531,5.8340161,172.6,172.56,5.83529122]
[1748512084924,0.0418161,172.6,172.56,0.04209122]
[1748512085729,0.0418161,172.6,172.58,5.7925]
[1748512085930,0.0418161,172.6,172.56,0.04209122]
[1748512088329,0.0418161,172.6,172.58,5.7925]
[1748512089425,0.0418161,172.6,172.59,5.7924]
[1748512096233,0.0418161,172.6,172.58,5.7927]
[1748512096833,0.0418161,172.6,172.59,5.7924]
[1748512104941,1.9659,172.66,172.63,5.791]
[1748512106043,2.00601453,172.66,172.63,5.82905565]
[1748512106841,2.00601453,172.66,172.63,0.03805565]
[1748512107347,5.83031453,172.66,172.63,0.03805565]
[1748512107939,0.04011453,172.66,172.63,5.82885565]
[1748512108745,0.04011453,172.66,172.64,5.7907]
[1748512111344,0.04011453,172.66,172.65,5.7904]
[1748512111549,1.9124,172.7,172.63,0.03805565]
[1748512111849,2.0405,172.73,172.63,0.03805565]
[1748512112444,0.03713397,172.7,172.63,0.03805565]
[1748512113046,5.82603397,172.7,172.66,5.7897]
[1748512114953,0.03713397,172.7,172.67,5.7897]
[1748512115148,0.03713397,172.7,172.67,5.82753891]
[1748512115547,0.03713397,172.7,172.68,5.7894]
[1748512115742,0.03713397,172.7,172.67,0.03783891]
[1748512116945,0.03713397,172.7,172.69,5.789]
[1748512117454,0.03713397,172.7,172.68,5.7891]
[1748512117651,0.03713397,172.7,172.67,0.03783891]
[1748512119059,0.03713397,172.7,172.69,5.789]
[1748512120155,0.03713397,172.7,172.68,5.7893]
[1748512120453,0.03713397,172.7,172.67,0.03783891]
[1748512120757,0.03713397,172.7,172.69,5.789]
[1748512121352,0.03713397,172.7,172.68,5.7893]
[1748512122158,0.03713397,172.7,172.67,5.82743891]
[1748512122358,0.03713397,172.7,172.67,0.03783891]
[1748512123147,5.7893,172.69,172.67,0.03783891]
[1748512127763,5.82593397,172.7,172.67,0.03783891]
[1748512127964,0.03713397,172.7,172.67,5.82743891]
[1748512129464,5.82593397,172.7,172.67,5.82743891]
[1748512129864,5.82593397,172.7,172.67,0.03783891]
[1748512130264,0.03713397,172.7,172.67,5.82753891]
[1748512131466,5.82593397,172.7,172.67,5.82753891]
[1748512132569,0.03713397,172.7,172.67,5.82753891]
[1748512133165,0.03713397,172.7,172.68,5.7894]
[1748512135360,0.03713397,172.7,172.69,5.789]
[1748512136265,0.03713397,172.7,172.68,5.7892]
[1748512138467,5.82583397,172.7,172.67,5.82753891]
[1748512138970,0.03713397,172.7,172.68,5.7893]
[1748512139773,0.03713397,172.7,172.67,5.82743891]
[1748512139971,5.82593397,172.7,172.67,5.82743891]
[1748512141867,5.7893,172.69,172.67,0.03783891]
[1748512143667,0.03713397,172.7,172.67,0.03783891]
[1748512144274,0.03713397,172.7,172.68,5.7894]
[1748512144470,0.03713397,172.7,172.67,0.03783891]
[1748512144966,0.03713397,172.7,172.69,5.789]
[1748512145768,5.7871,172.75,172.71,5.7882]
[1748512146677,5.7871,172.75,172.7,5.7886]
[1748512146868,5.82456896,172.74,172.7,5.82795683]
[1748512150975,0.03716896,172.74,172.71,5.7881]
[1748512151278,0.03716896,172.74,172.7,0.03935683]
[1748512152175,0.03716896,172.74,172.71,5.7881]
[1748512152577,5.82466896,172.74,172.71,5.7881]
[1748512152976,0.03716896,172.74,172.7,5.82805683]
[1748512153376,5.7878,172.73,172.7,5.82805683]
[1748512154275,5.82456896,172.74,172.71,5.7882]
[1748512154571,0.03716896,172.74,172.7,0.03935683]
[1748512155676,5.7883,172.72,172.7,0.03935683]
[1748512157376,5.7878,172.73,172.7,0.03935683]
[1748512157782,5.7878,172.73,172.7,5.82805683]
[1748512158177,0.03716896,172.74,172.7,0.03935683]
[1748512158376,0.03716896,172.74,172.73,5.7877]
[1748512175987,29.02,172.82,172.78,5.786]
[1748512176295,29.02,172.82,172.74,29.02]
[1748512176486,29.02,172.82,172.78,5.786]
[1748512176685,29.02,172.82,172.75,29.02]
[1748512176986,0.04034879,172.8,172.78,5.7858]
[1748512177187,0.04034879,172.8,172.77,0.04308889]
[1748512177388,2.0156,172.83,172.77,0.04308889]
[1748512177583,29.02,172.86,172.81,5.7849]
[1748512177980,29.02,172.86,172.75,29.02]
[1748512178193,29.02,172.86,172.8,5.785]
[1748512178385,0.04124817,172.85,172.81,0.04018124]
[1748512178690,5.7844,172.83,172.81,0.04018124]
[1748512180490,5.7847,172.82,172.81,0.04018124]
[1748512188710,5.7845,172.83,172.81,0.04018124]
[1748512188911,5.25944266,172.85,172.81,0.04018124]
[1748512189304,5.7841,172.84,172.81,0.04018124]
[1748512189798,5.25944266,172.85,172.81,0.04018124]
[1748512190002,0.04124817,172.85,172.82,5.7847]
[1748512190208,0.04124817,172.85,172.81,3.25367573]
[1748512190403,0.04124817,172.85,172.83,5.7841]
[1748512190905,0.04124817,172.85,172.84,5.784]
[1748512192906,0.04124817,172.85,172.83,5.7843]
[1748512195807,0.04124817,172.85,172.84,5.784]
[1748512196413,0.04124817,172.85,172.83,5.7843]
[1748512198110,5.7831,172.87,172.85,49.95875183]
[1748512198313,36.7529,172.88,172.85,49.95875183]
[1748512198707,30.9701,172.88,172.85,49.95875183]
[1748512199103,31.01189602,172.88,172.85,49.99715336]
[1748512199512,5.7833,172.87,172.85,49.99715336]
[1748512200013,31.01189602,172.88,172.85,49.99715336]
[1748512200919,5.7834,172.86,172.85,49.99715336]
[1748512201414,5.7834,172.86,172.85,40.19290769]
[1748512203517,5.7834,172.86,172.85,31.33870769]
[1748512213130,3.2131155,172.87,172.85,31.33870769]
[1748512213630,8.9964155,172.87,172.85,31.33870769]
[1748512213930,3.2131155,172.87,172.85,31.33870769]
[1748512214233,0.04179602,172.88,172.85,31.33870769]
[1748512215732,5.82459602,172.88,172.85,37.12230769]
[1748512216124,5.783,172.87,172.85,31.33870769]
[1748512216329,0.04179602,172.88,172.85,31.33870769]
[1748512216733,5.7834,172.86,172.85,31.33870769]
[1748512226956,28.96,172.87,172.85,31.33870769]
[1748512226957,34.7432,172.87,172.85,31.33870769]
[1748512227156,28.96,172.87,172.85,31.33870769]
[1748512227454,0.04179602,172.88,172.85,37.12210769]
[1748512227660,5.82469602,172.88,172.85,37.12210769]
[1748512227849,0.04179602,172.88,172.85,31.33870769]
[1748512229049,0.04179602,172.88,172.85,37.12230769]
[1748512229457,0.04179602,172.88,172.86,5.7831]
[1748512229848,0.04179602,172.88,172.85,31.33870769]
[1748512231055,0.04179602,172.88,172.86,5.7834]
[1748512231252,0.04179602,172.88,172.85,31.33870769]
[1748512231653,0.04179602,172.88,172.86,5.7831]
[1748512234062,0.04179602,172.88,172.87,5.783]
[1748512234760,0.04179602,172.88,172.86,5.7833]
[1748512234957,0.04179602,172.88,172.85,31.33870769]
[1748512235358,5.82449602,172.88,172.85,31.33870769]
[1748512235559,0.04179602,172.88,172.85,31.33870769]
[1748512237263,5.7834,172.86,172.85,31.33870769]
[1748512246370,37.95570476,172.86,172.85,31.33870769]
[1748512247978,34.7434,172.86,172.85,31.33870769]
[1748512250571,28.96,172.86,172.76,30.8825]
[1748512250775,28.96,172.86,172.76,1.9225]
[1748512251271,5.7857,172.79,172.76,7.7089]
[1748512251474,5.82440413,172.79,172.76,7.75290464]
[1748512252478,5.82440413,172.79,172.76,1.96650464]
[1748512252678,5.7861,172.78,172.76,1.96650464]
[1748512252871,0.03870413,172.79,172.76,1.96650464]
[1748512253070,0.03870413,172.79,172.76,0.04400464]
[1748512253279,5.786,172.78,172.76,0.04400464]
[1748512255582,5.7864,172.77,172.76,0.04400464]
[1748512256681,5.7862,172.78,172.76,0.04400464]
[1748512256879,0.03870413,172.79,172.76,0.04400464]
[1748512257270,5.7864,172.77,172.76,0.04400464]
[1748512274491,5.7884,172.71,172.68,1.909]
[1748512274790,28.96,172.78,172.68,7.6983]
[1748512274990,5.7883,172.72,172.68,7.6983]
[1748512275191,28.98,172.74,172.68,7.6983]
[1748512275493,5.7883,172.72,172.69,0.03824012]
[1748512276493,5.7883,172.72,172.69,5.82724012]
[1748512277493,5.83010095,172.73,172.69,5.82724012]
[1748512280392,0.04230095,172.73,172.7,5.7885]
[1748512280588,0.04230095,172.73,172.69,0.03824012]
[1748512281290,0.04230095,172.73,172.7,5.7886]
[1748512282699,0.04230095,172.73,172.69,0.03824012]
[1748512283091,0.04230095,172.73,172.7,5.7885]
[1748512283889,5.83010095,172.73,172.7,5.7885]
[1748512286303,5.7882,172.72,172.69,5.82724012]
[1748512288302,5.83010095,172.73,172.7,5.7886]
[1748512288701,5.7881,172.72,172.7,5.7886]
[1748512290902,5.7881,172.72,172.69,5.82714012]
[1748512291805,5.7881,172.72,172.7,5.7887]
[1748512292200,5.83010095,172.73,172.7,5.7887]
[1748512294406,0.04230095,172.73,172.71,5.7883]
[1748512295102,5.83010095,172.73,172.71,5.7883]
[1748512295604,5.83010095,172.73,172.7,5.7886]
[1748512296404,0.04230095,172.73,172.7,5.7886]
[1748512296611,5.788,172.72,172.69,5.82724012]
[1748512297113,5.788,172.72,172.7,5.7887]
[1748512298211,5.83010095,172.73,172.7,5.7887]
[1748512306518,5.7881,172.72,172.69,5.82714012]
[1748512310415,0.04230095,172.73,172.69,0.03824012]
[1748512311817,5.7882,172.72,172.69,0.03824012]
[1748512312825,5.7882,172.72,172.69,5.82724012]
[1748512315027,5.83010095,172.73,172.7,5.7887]
[1748512315424,5.83010095,172.73,172.69,0.03824012]
[1748512315425,0.04230095,172.73,172.69,0.03824012]
[1748512316127,5.83020095,172.73,172.7,5.7885]
[1748512316327,5.83020095,172.73,172.69,0.03824012]
[1748512316727,0.04230095,172.73,172.71,5.7883]
[1748512319519,0.04230095,172.73,172.72,5.788]
[1748512320323,0.04230095,172.73,172.71,5.7883]
[1748512321029,5.83000095,172.73,172.71,5.7883]
[1748512321529,0.04230095,172.73,172.71,5.7883]
[1748512322534,0.04230095,172.73,172.7,5.7886]
[1748512322535,5.83000095,172.73,172.7,5.7886]
[1748512324132,5.83000095,172.73,172.71,5.7883]
[1748512326031,5.83000095,172.73,172.7,5.7886]
[1748512326231,5.83000095,172.73,172.69,0.03824012]
[1748512328033,5.83000095,172.73,172.71,5.7884]
[1748512328935,0.04230095,172.73,172.71,5.7884]
[1748512329326,0.04230095,172.73,172.72,5.788]
[1748512329729,0.04230095,172.73,172.69,0.03824012]
[1748512329932,5.83020095,172.73,172.7,5.7885]
[1748512330730,0.04230095,172.73,172.69,0.03824012]
[1748512331331,5.7881,172.72,172.69,5.82694012]
[1748512331732,0.04230095,172.73,172.69,0.03824012]
[1748512333031,5.83030095,172.73,172.7,5.7885]
[1748512333434,5.788,172.72,172.7,5.7885]
[1748512333836,5.788,172.72,172.69,5.82714012]
[1748512334037,0.04230095,172.73,172.69,0.03824012]
[1748512335641,0.04230095,172.73,172.72,5.788]
[1748512340651,0.04230095,172.73,172.71,5.7883]
[1748512341251,5.83000095,172.73,172.7,5.7886]
[1748512341656,0.04230095,172.73,172.69,0.03824012]
[1748512341853,5.7885,172.71,172.69,0.03824012]
[1748512342247,32.1770243,172.74,172.69,0.03824012]
[1748512342443,32.1770243,172.74,172.69,5.82704012]
[1748512342652,5.7879,172.73,172.69,5.82704012]
[1748512343152,5.82564,172.73,172.69,5.82704012]
[1748512343355,5.82564,172.73,172.7,5.7885]
[1748512343546,0.03774,172.73,172.69,0.03824012]
[1748512344052,0.03774,172.73,172.7,5.7885]
[1748512344253,5.82564,172.73,172.7,5.7885]
[1748512345254,5.7882,172.72,172.69,5.82714012]
[1748512346349,5.7884,172.71,172.69,0.03824012]
[1748512348060,5.7887,172.7,172.69,0.03824012]
[1748512348253,37.9657243,172.7,172.69,0.03824012]
[1748512348953,5.7899,172.67,172.61,1.9696]
[1748512349461,5.7899,172.67,172.63,5.7909]
[1748512349848,5.82759385,172.67,172.63,5.82817289]
[1748512350455,5.82759385,172.67,172.64,5.7906]
[1748512350660,5.7901,172.66,172.63,0.03727289]
[1748512350858,0.03769385,172.67,172.63,0.03727289]
[1748512351060,0.03769385,172.67,172.63,5.82807289]
[1748512352153,5.82749385,172.67,172.63,5.82807289]